Cogmind - Beta 15 @@@ ROGUE MODE // 2025.06.10 @ 07:35:51 Player: CL-1C0 Result: Destroyed by P-60 Hacker with Shock Rifle Performance ------------- Evolutions (1) 500 Regions Visited (5) 1000 Robots Destroyed (0) 0 Value Destroyed (0) 0 Prototype IDs (0) 0 Alien Tech Used (0) 0 Bonus (200) 200 TOTAL SCORE: 1700 Bonus ------- Pacifist 200 Cogmind --------- Core Integrity 0/400 Matter 300/300 Energy 100/100 System Corruption 2% Temperature Cool (0) Movement Core (50) Location -9/Recycling Parts ------- > --- POWER (1) -------- (None) > --- PROPULSION (2) --- (None) > --- UTILITY (4) ------ (None) > --- WEAPON (2) ------- (None) > --- INVENTORY (5) ---- Flight Unit Grenade Launcher Peak State ------------ > --- POWER ------------ (None) > --- PROPULSION ------- Light Treads Light Treads > --- UTILITY ---------- (None) > --- WEAPON ----------- (None) > --- INVENTORY -------- Light Ion Engine Wheel Wheel [Rating: 2] Favorites ----------- Power None Propulsion Light Treads Treads Light Treads Utility None Weapon None Build | -11 -10 -10 -9 -9 -9 ------- Run | Yrd Mat Min Mat Sto Rec Slots Evolved 2 | . . . 2 . . Power . | . . . . . . Propulsion . | . . . . . . Utility 2 | . . . 2 . . Weapon . | . . . . . . Parts Attached 2 | 2 . . . . . Power . | . . . . . . Engine . | . . . . . . Core . | . . . . . . Reactor . | . . . . . . Propulsion 2 | 2 . . . . . Treads 2 | 2 . . . . . Leg . | . . . . . . Wheel . | . . . . . . Hover . | . . . . . . Flight . | . . . . . . Utility . | . . . . . . Device . | . . . . . . Storage . | . . . . . . Processor . | . . . . . . Hackware . | . . . . . . Protection . | . . . . . . Artifact . | . . . . . . Weapon . | . . . . . . Energy Gun . | . . . . . . Energy Cannon . | . . . . . . Ballistic Gun . | . . . . . . Ballistic Cannon . | . . . . . . Launcher . | . . . . . . Special Weapon . | . . . . . . Impact Weapon . | . . . . . . Slashing Weapon . | . . . . . . Piercing Weapon . | . . . . . . Special Melee Weapon . | . . . . . . Unidentified Prototypes . | . . . . . . Parts Lost 2 | . . . . 2 . Power . | . . . . . . Propulsion 2 | . . . . 2 . Utility . | . . . . . . Weapon . | . . . . . . Highest Loss Streak 2 | . . . . 2 . To Critical Strikes . | . . . . . . Average Backups 1 | 4 . . 1 1 1 Power . | 1 . . . . . Propulsion . | 3 . . . . . Utility . | . . . . . . Weapon . | . . . 1 1 1 Tool/Special . | . . . . . . Unused Backups 1 | . . . . . 1 Power . | . . . . . . Propulsion . | . . . . . . Utility . | . . . . . . Weapon 1 | . . . . . 1 Tool/Special . | . . . . . . Average Slot Usage (%) 16 | . 28 28 22 14 . Treads 16 | . 28 28 22 14 . Peak Build Rating 2 | 2 2 2 2 2 . Average Rating 1 | 1 2 2 2 1 . On Entrance 2 | 6 2 2 2 2 . Naked Turns 44 | . . . . 11 33 Heaviest Build . | . . . . . . Greatest Support 40 | 3 3 40 3 3 3 Greatest Overweight (x) . | . . . . . . Average Overweight (x) . | . . . . . . Largest Inventory Capacity 5 | 5 5 5 5 5 5 Average Capacity 5 | 5 5 5 5 5 5 Most Carried 4 | 4 . 1 1 1 2 Average Carried . | 2 . . 1 1 1 Final Capacity 5 | 5 5 5 5 5 5 Final Carried 2 | . . 1 1 1 2 Class Distribution -------------------- 100% | Mutant Dominant Class ---------------- Mutant | -9/Materials Mutant | -9/Storage Mutant | -9/Recycling Resources | -11 -10 -10 -9 -9 -9 ----------- Run | Yrd Mat Min Mat Sto Rec Matter Collected 200 | 200 . . . . . Remotely . | . . . . . . Salvage Created . | . . . . . . Parts . | . . . . . . Haulers Intercepted . | . . . . . . Recyclers Shooed . | . . . . . . Parts Field Recycled . | . . . . . . Retrieved Matter . | . . . . . . Parts Self-Destructed . | . . . . . . Prevented . | . . . . . . Kills | -11 -10 -10 -9 -9 -9 ------- Run | Yrd Mat Min Mat Sto Rec Combat Hostiles Destroyed . | . . . . . . Classes Destroyed . | . . . . . . Best Kill Streak . | . . . . . . Combat Bots Only . | . . . . . . Max Kills in Single Turn . | . . . . . . Gunslinging . | . . . . . . Exploded . | . . . . . . Melee . | . . . . . . Uniques/NPCs Destroyed . | . . . . . . Combat | -11 -10 -10 -9 -9 -9 -------- Run | Yrd Mat Min Mat Sto Rec Hostile Shots Fired 94 | . . . 21 53 20 Missed 35 | . . . 7 22 6 Hits 59 | . . . 14 31 14 Projectile 59 | . . . 14 31 14 Critical Strikes 1 | . . . . . 1 Damage Taken 697 | . . . 179 330 188 Core 400 | . . . 57 155 188 Absorbed by Shields . | . . . . . . Core Remaining (%) 100 | 100 . 100 . . . Volleys Fired . | . . . . . . Largest . | . . . . . . Hottest . | . . . . . . Shots Fired . | . . . . . . Gun . | . . . . . . Cannon . | . . . . . . Launcher . | . . . . . . Special . | . . . . . . Kinetic . | . . . . . . Thermal . | . . . . . . Explosive . | . . . . . . Electromagnetic . | . . . . . . Robot Hit Streak . | . . . . . . Robot Miss Streak . | . . . . . . Penetration Max . | . . . . . . Secondary Targets . | . . . . . . Shots Hit Robots . | . . . . . . Core Hits 4 | . . . 1 2 1 Critical Kills . | . . . . . . Critical Parts Destroyed . | . . . . . . Critical Strikes . | . . . . . . Melee Attacks . | . . . . . . Impact . | . . . . . . Slashing . | . . . . . . Piercing . | . . . . . . Sneak Attacks . | . . . . . . Combat Hostiles . | . . . . . . Follow-up Attacks . | . . . . . . Damage Inflicted 66 | . . . 20 27 19 Guns . | . . . . . . Cannons . | . . . . . . Explosions . | . . . . . . Melee . | . . . . . . Ramming 66 | . . . 20 27 19 Kinetic . | . . . . . . Thermal . | . . . . . . Explosive . | . . . . . . Electromagnetic . | . . . . . . Impact . | . . . . . . Slashing . | . . . . . . Piercing . | . . . . . . Highest Corruption 2 | . . . . 2 2 Average Corruption 2 | . . . . 2 2 Corruption Purged . | . . . . . . Corruption Blocked . | . . . . . . Effects 1 | . . . . 1 . Message Errors 1 | . . . . 1 . Overload Shots . | . . . . . . Overflow Damage . | . . . . . . Projectiles . | . . . . . . Explosions . | . . . . . . Melee . | . . . . . . Knockbacks . | . . . . . . Impact . | . . . . . . Kinetic . | . . . . . . Secondary . | . . . . . . Self-Inflicted Damage 28 | . . . 9 10 9 Shots . | . . . . . . Rammed 24 | . . . 5 14 5 Targets Rammed 24 | . . . 5 14 5 Kicked . | . . . . . . Crushed . | . . . . . . Highest Temperature . | . . . . . . Average Temperature . | . . . . . . Received Heat Transfer 162 | . . . 45 108 9 Siege Activations . | . . . . . . Martial Activations . | . . . . . . Shielding Activations . | . . . . . . Robots Disrupted . | . . . . . . Combat Hostiles . | . . . . . . Robots Corrupted . | . . . . . . Combat Hostiles . | . . . . . . Parts Fried . | . . . . . . Impact Corruptions . | . . . . . . Robots Melted . | . . . . . . Combat Hostiles . | . . . . . . Parts Melted . | . . . . . . Heat Transferred . | . . . . . . Parts Sabotaged . | . . . . . . Parts Stolen . | . . . . . . Parts Stripped . | . . . . . . Power Chain Reactions . | . . . . . . Alert | -11 -10 -10 -9 -9 -9 ------- Run | Yrd Mat Min Mat Sto Rec Maximum Alert Level . | . . . . . . Low Security (%) 100 | 100 100 100 100 100 100 Level 1 . | . . . . . . Level 2 . | . . . . . . Level 3 . | . . . . . . Level 4 . | . . . . . . Level 5 . | . . . . . . High Security . | . . . . . . Max Security . | . . . . . . Peak Influence 15 | . . . . 15 5 Initial 5 | . . . . . 5 Average . | . . . . . 2 Influence Increases 15 | . . . . 15 . Lose Combat Pursuer 15 | . . . . 15 . Influence Decreases 15 | . . . . . 15 Entered New Map 10 | . . . . . 10 Time Decay 5 | . . . . . 5 Squads Dispatched 1 | . . . . 1 . Investigation 1 | . . . . 1 . Extermination . | . . . . . . Reinforcement . | . . . . . . Assault . | . . . . . . Garrison . | . . . . . . Intercept . | . . . . . . Searches Triggered . | . . . . . . Construction Impeded . | . . . . . . Haulers Reinforced . | . . . . . . Active Scanning Responses . | . . . . . . Cargo Convoy Interrupts . | . . . . . . Stealth | -11 -10 -10 -9 -9 -9 --------- Run | Yrd Mat Min Mat Sto Rec Distress Signals 1 | . . . 1 . . Communications Jammed . | . . . . . . Distress Signals . | . . . . . . Times Spotted 29 | . . . 8 13 8 Peak Tracking Total 14 | . . . 12 14 8 Tactical Retreats 1 | . . . . 1 . Traps | -11 -10 -10 -9 -9 -9 ------- Run | Yrd Mat Min Mat Sto Rec Traps Triggered . | . . . . . . Indirectly . | . . . . . . Trap Hack Attempts . | . . . . . . Triggered . | . . . . . . Disarmed . | . . . . . . Reprogrammed . | . . . . . . Reused . | . . . . . . Traps Extracted . | . . . . . . Installed . | . . . . . . Triggered . | . . . . . . Machines | -11 -10 -10 -9 -9 -9 ---------- Run | Yrd Mat Min Mat Sto Rec Machines Disabled . | . . . . . . Max in Single Turn . | . . . . . . Machines Repaired . | . . . . . . Machines Dismantled . | . . . . . . Machines Sabotaged . | . . . . . . Overloaded Fab Kills . | . . . . . . Hacking | -11 -10 -10 -9 -9 -9 --------- Run | Yrd Mat Min Mat Sto Rec Machines Accessed 2 | . . . 1 1 . Terminals 2 | . . . 1 1 . Fabricators . | . . . . . . Repair Stations . | . . . . . . Recycling Units . | . . . . . . Scanalyzers . | . . . . . . Garrison Access . | . . . . . . Total Hacks 7 | . . . 3 4 . Successful . | . . . . . . Failed 7 | . . . 3 4 . Catastrophic 2 | . . . . 2 . Database Lockouts . | . . . . . . Manual 4 | . . . 3 1 . Terminals 7 | . . . 3 4 . Fabricators . | . . . . . . Repair Stations . | . . . . . . Recycling Units . | . . . . . . Scanalyzers . | . . . . . . Garrison Access . | . . . . . . Terminal Hacks . | . . . . . . Fabricator Hacks . | . . . . . . Repair Station Hacks . | . . . . . . Recycling Unit Hacks . | . . . . . . Scanalyzer . | . . . . . . Garrison Access Hacks . | . . . . . . Unauthorized Hacks . | . . . . . . Terminals . | . . . . . . Fabricators . | . . . . . . Repair Stations . | . . . . . . Recycling Units . | . . . . . . Scanalyzers . | . . . . . . Garrison Access . | . . . . . . Data Cores Recovered . | . . . . . . Used . | . . . . . . Hacking Detections 3 | . . . 1 2 . Full Trace Events 2 | . . . 1 1 . Feedback Events . | . . . . . . Feedback Blocked . | . . . . . . Robot Schematics Acquired . | . . . . . . Robots Built . | . . . . . . Authchips . | . . . . . . Time . | . . . . . . Total Robot Build Rating . | . . . . . . Part Schematics Acquired . | . . . . . . Parts Built . | . . . . . . Authchips . | . . . . . . Time . | . . . . . . Total Part Build Rating . | . . . . . . Parts Repaired . | . . . . . . Time . | . . . . . . Parts Recycled . | . . . . . . Recycled Matter . | . . . . . . Retrieved Matter . | . . . . . . Retrieved Components . | . . . . . . Parts Scanalyzed . | . . . . . . Part Schematics Acquired . | . . . . . . Parts Damaged . | . . . . . . Bothacking | -11 -10 -10 -9 -9 -9 ------------ Run | Yrd Mat Min Mat Sto Rec Used RIF Installer . | . . . . . . Robots Hacked . | . . . . . . Non-combat . | . . . . . . Combat . | . . . . . . Robot Hacks Applied . | . . . . . . Relay Couplers Released . | . . . . . . Fabnet Peak Effective % . | . . . . . . Robots Rewired . | . . . . . . Allies Hacked . | . . . . . . Hacks Repelled . | . . . . . . Allies | -11 -10 -10 -9 -9 -9 -------- Run | Yrd Mat Min Mat Sto Rec Total Allies 3 | . . 3 . . . Largest Group 3 | . . 3 . . . Highest-Rated Group 40 | . . 40 . . . Highest-Rated Ally 16 | . . 16 . . . Total Orders . | . . . . . . Ally Attacks . | . . . . . . Total Damage . | . . . . . . Kills . | . . . . . . Allies Corrupted . | . . . . . . Allies Melted . | . . . . . . Intel | -11 -10 -10 -9 -9 -9 ------- Run | Yrd Mat Min Mat Sto Rec Active Infowar (turns) . | . . . . . . Robot Analysis Total . | . . . . . . Derelict Logs Recovered . | . . . . . . Drone Launches . | . . . . . . Drone Recoveries . | . . . . . . Exploration | -11 -10 -10 -9 -9 -9 ------------- Run | Yrd Mat Min Mat Sto Rec Turns Passed 155 | 4 4 15 47 52 33 Spaces Moved 245 | 1 8 25 84 73 54 Core 244 | 1 8 24 84 73 54 Treads 1 | . . 1 . . . Legs . | . . . . . . Wheels . | . . . . . . Hover . | . . . . . . Flight . | . . . . . . Fastest Speed 50 | 50 50 50 50 50 50 Average Speed 50 | 50 50 54 50 50 50 Slowest Speed 160 | 50 50 160 50 50 50 Overloaded Moves . | . . . . . . Propulsion Burnouts . | . . . . . . Robots Hopped . | . . . . . . Potential Cave-ins . | . . . . . . Cave-ins Triggered . | . . . . . . Exploration Rate (%) 12 | 2 4 8 17 26 15 Regions Visited 5 Branch Regions 3 Pre-discovered Areas . | . . . . . . Known Exits Taken . | . . . . . . Unknown Exits Taken 5 | 1 1 1 1 1 . Scrap Searched . | . . . . . . Spaces Dug . | . . . . . . Terrain Destroyed . | . . . . . . Melee . | . . . . . . Projectile . | . . . . . . AOE . | . . . . . . Terrain Rammed . | . . . . . . Walls Destroyed . | . . . . . . Machines Disabled . | . . . . . . Actions | -11 -10 -10 -9 -9 -9 --------- Run | Yrd Mat Min Mat Sto Rec Total 271 | 5 7 25 88 86 60 Wait . | . . . . . . Move 240 | . 7 24 83 72 54 Hop . | . . . . . . Pick Up 2 | . . 1 . . 1 Fast Attach . | . . . . . . Attach 2 | 2 . . . . . Detach . | . . . . . . Swap . | . . . . . . Drop 3 | 3 . . . . . Fire . | . . . . . . Melee . | . . . . . . Ram 22 | . . . 5 12 5 Kick . | . . . . . . Crush 2 | . . . . 2 . Escape Stasis . | . . . . . . Rewire . | . . . . . . Trap . | . . . . . . Miscellaneous . | . . . . . . Route ------- -11/Scrapyard -10/Materials -10/Mines -9/Materials -9/Storage -9/Recycling History --------- Turn | Location | Event 1 | -11/Scrapyard | Released all parts (6) 5 | -11/Scrapyard | Discovered new exit (range 0) 5 | -11/Scrapyard | Entered Materials 5 | -10/Materials | Discovered new exit (range 7) 9 | -10/Materials | Entered Mines 11 | -10/Mines | Assisted by bots powering up and referring to "LRC-V3" 18 | -10/Mines | Discovered new exit (range 5) 21 | -10/Mines | YI-UF0 nonchalantly dropped a Grenade Launcher on the ground 24 | -10/Mines | Entered Materials 24 | -9/Materials | Evolved 2 slots: Utility x2 61 | -9/Materials | Discovered new exit (range 15) 71 | -9/Materials | Entered Storage 116 | -9/Storage | Core integrity fell below 50% 121 | -9/Storage | Used back door to open Recycling access 121 | -9/Storage | Discovered new exit (range 4) 123 | -9/Storage | Entered Recycling 152 | -9/Recycling | Core integrity fell below 20% 156 | -9/Recycling | Destroyed by P-60 Hacker with Shock Rifle Last Messages --------------- 00104_ Destabilizing: Short circuit. 00105_ Slammed into G-34 Mercenary. 00112_ Broken Lgt. Treads destroyed. 00113_ O/F<6CGD72J#/TQCWEOXFOVB 00121_ Connecting with Door Terminal... 00121_ Access granted. >>\\IAMDERELICT Access granted. 00121_ EXIT=FOUND LOCATION=UNKNOWN GOAL=ESCAPE 00137_ P-60 Hacker springs to life. 00137_ I-25 Savior destroyed. 00137_ P-60 Hacker springs to life. 00137_ G-34 Mercenary springs to life. 00147_ S-10 Pest springs to life. 00148_ G-34 Mercenary springs to life. 00148_ Y-45 Defender springs to life. 00149_ Acquired Broken Flight Unit. 00152_ Slammed into P-60 Hacker. Map ----- +----------------------------------------------------+ | | | | | | | | | ?????????????????????????????????????????????????? | | ?????????????????????????????????????????????????? | | ?????????????????????????????????????????????????? | | ?????????????????????????????????????????????????? | | ?????????????????????????????????????????????????? | | ?????????????????????????????????????????????????? | | ?????????????????????????????????????????????????? | | ?????????????????????????????????????????????????? | | ?????????????????????????????????????????????????? | | ?????????????????????????????????????????????????? | | ?????????????????????????????????????????????????? | | ?????????????????????????????????????????????????? | | ?????????????????????????????????????????????????? | | ?????????????????????????????????????????????????? | | ?????????##########??????????????????????????????? | | ?????????# ! #?????????########?????????????? | | ?????????# = #?????????# #?????????????? | | ?????????# | #?????????# ! #?????????????? | | ?????????#]%=! #?????????#%= #?????????????? | | ?????????# !! #?????????# ]#?????????????? | | ?????????# | ########### #?????????????? | | ?????????# + lgp p@%%sY #?????????????? | | ?????###?#! % ###### ####g ]#?????????????? | | ###### #?# ! ?????## ##?# ! %#?????????????? | | ####+##+######## #?# % #?????????????? | | + #?# ] #?????????????? | | ####### ##### #?# ] #?????????????? | | #?????# #???## ##?# / #?????????????? | | #?????# #????# #??# %#?????????????? | | #?????# #????# #??##+#####?????????????? | | #?????# #????# ???????????????????????? | | #?????# #????###???????????????????????? | | ########?????######??????????????????????????????? | | ?????????????????????????????????????????????????? | | ?????????????????????????????????????????????????? | | ?????????????????????????????????????????????????? | | ?????????????????????????????????????????????????? | | ???????????????????????????????????????????????? | | ?????????????????????????????????????????????? | | #####????????????????????????????????????????????? | | ?????????????????????????????????????????????????? | | ?????????????????????????????????????????????????? | | ?????????????????????????????????????????????????? | | ?????????????????????????????????????????????????? | | ?????????????????????????????????????????????????? | | ?????????????????????????????????????????????????? | +----------------------------------------------------+ Best States ------------- Heat Dissipation 28 Energy Generation 5 Energy Capacity 100 Matter Stores 300 Matter Capacity 300 Sight Range 16 Terrain Scan Density 10 Evasion (%) 50 Item Schematics ----------------- None Robot Schematics ------------------ None Fabricated ------------ Nothing Repaired ---------- Nothing Alien Tech Used ----------------- None Achievements -------------- None Challenges ------------ None Game ------ Seed SignalSpreadFilter Manual? 0 Play Time 00:02:36 Cumulative 532.2 hours Start 2025.06.10 @ 07:33:36 End 2025.06.10 @ 07:35:51 Sessions 1 Manual Loads 0 Difficulty Rogue Special Mode None Game No. 622 Rogue 622 Adventurer 0 Explorer 0 Win Type - Total 18 Types 12/0/5/1/0/0/0/0/0/0 Lore% 83 Gallery% 82 Achievement% 82 Wizard Run 0 Options --------- Layout 0 ASCII 0 Keyboard 0 Movement Numpad Keybinds 0 Fullscreen 1 Font 18/SmallcapsGlow Map View 76x50 Zoom Use 0% Tactical HUD 1 Map Filters NONE Filters NONE Steam 1 RUN: 140a482f-95f1-42fa-b501-ff3281c6cb17